bitfinex/quotes_BTCUSD_20250802
["timestamp","ask_amount","ask_price","bid_price","bid_amount"]
[1754162859905,0.00034351,112860.0,112850.0,0.09059284]
[1754162860114,0.00034351,112860.0,112850.0,0.23631817]
[1754162860315,0.00034351,112860.0,112850.0,0.23410284]
[1754162860521,0.00034351,112860.0,112850.0,0.28150284]
[1754162860937,0.00034351,112860.0,112850.0,0.71164068]
[1754162861776,0.00034351,112860.0,112850.0,0.28150284]
[1754162862404,0.00034351,112860.0,112850.0,0.71164068]
[1754162862667,0.00034351,112860.0,112850.0,0.7290897]
[1754162863275,0.0002,112870.0,112860.0,0.00015649]
[1754162863482,0.0002,112870.0,112860.0,0.09296446]
[1754162863736,0.0002,112870.0,112860.0,0.14331446]
[1754162863964,0.0002,112870.0,112860.0,0.28237933]
[1754162864380,0.0002,112870.0,112860.0,0.28437933]
[1754162865083,0.0002,112870.0,112860.0,0.28737933]
[1754162865328,0.0002,112870.0,112860.0,0.28437933]
[1754162865580,0.0002,112870.0,112860.0,0.28637933]
[1754162865798,0.0002,112870.0,112860.0,0.28437933]
[1754162866006,0.0002,112870.0,112860.0,0.28449933]
[1754162866209,0.0002,112870.0,112860.0,0.28549933]
[1754162866906,0.0002,112870.0,112860.0,0.14409933]
[1754162867116,0.0002,112870.0,112860.0,0.28767446]
[1754162867320,0.0002,112870.0,112860.0,0.28545933]
[1754162870886,0.0002,112870.0,112860.0,0.28549933]
[1754162871892,0.0002,112870.0,112860.0,0.71563717]
[1754162873078,0.0002,112870.0,112860.0,0.28549933]
[1754162873267,0.0002,112870.0,112860.0,0.71563717]
[1754162873684,0.0002,112870.0,112860.0,0.28549933]
[1754162873882,0.0002,112870.0,112860.0,0.71563717]
[1754162874306,0.0002,112870.0,112860.0,0.28549933]
[1754162874526,0.0002,112870.0,112860.0,0.71563717]
[1754162874965,0.0002,112870.0,112860.0,0.28549933]
[1754162875405,0.1,112880.0,112870.0,0.01744902]
[1754162875630,0.1,112880.0,112870.0,0.59912463]
[1754162875863,0.1,112880.0,112870.0,0.5969097]
[1754162876308,0.1,112880.0,112870.0,0.72046068]
[1754162876815,0.1,112880.0,112870.0,0.7419097]
[1754162877321,0.1,112880.0,112870.0,0.7469097]
[1754162878301,0.1,112880.0,112870.0,0.7429097]
[1754162878542,0.1,112880.0,112870.0,0.7449097]
[1754162879003,0.1,112880.0,112870.0,0.7429097]
[1754162879239,0.1,112880.0,112870.0,0.7459097]
[1754162880476,0.1,112880.0,112870.0,0.32476443]
[1754162880960,0.1,112880.0,112870.0,0.75661832]
[1754162881195,0.1,112880.0,112870.0,0.61277832]
[1754162881440,0.1,112880.0,112870.0,0.74849832]
[1754162881706,0.1,112880.0,112870.0,0.75049832]
[1754162881940,0.1,112880.0,112870.0,0.75249832]
[1754162882616,0.1,112880.0,112870.0,0.61177832]
[1754162882833,0.1,112880.0,112870.0,0.75253832]
[1754162883313,0.1,112880.0,112870.0,0.70084832]
[1754162883519,0.1,112880.0,112870.0,0.75043832]
[1754162883734,0.1,112880.0,112870.0,0.61177832]
[1754162883969,0.1,112880.0,112870.0,0.75249832]
[1754162884409,0.10826957,112880.0,112870.0,0.31214443]
[1754162884853,0.10826957,112880.0,112870.0,0.75249832]
[1754162886274,0.10827517,112880.0,112870.0,0.31214443]
[1754162886502,0.10827517,112880.0,112870.0,0.75249832]
[1754162886973,0.10811868,112880.0,112870.0,0.75269832]
[1754162887409,0.10811868,112880.0,112870.0,0.31234443]
[1754162887632,0.10811868,112880.0,112870.0,0.75269832]
[1754162887857,0.10811868,112880.0,112870.0,1.21050123]
[1754162888080,0.10811868,112880.0,112870.0,0.77014734]
[1754162888317,0.10811868,112880.0,112870.0,0.27810345]
[1754162888544,0.10811868,112880.0,112870.0,0.26065443]
[1754162888763,0.10811868,112880.0,112870.0,0.31234443]
[1754162889505,0.10811868,112880.0,112870.0,0.26065443]
[1754162889749,0.10822868,112880.0,112870.0,0.26065443]
[1754162889998,0.10811868,112880.0,112870.0,0.31024443]
[1754162890248,0.10811868,112880.0,112870.0,0.31234443]
[1754162890962,0.10811868,112880.0,112870.0,0.74237912]
[1754162891673,0.10811868,112880.0,112870.0,0.31234443]
[1754162892198,0.10811868,112880.0,112870.0,0.74237912]
[1754162893940,0.10811868,112880.0,112870.0,0.75982814]
[1754162894622,0.34,112920.0,112880.0,0.43003469]
[1754162894887,0.00014348,112900.0,112890.0,0.14043738]
[1754162895099,0.00014348,112900.0,112890.0,0.14253738]
[1754162895351,0.33766348,112920.0,112890.0,0.29689738]
[1754162895589,0.00047818,112920.0,112890.0,0.29468284]
[1754162895871,0.00047818,112920.0,112900.0,0.00221434]
[1754162896116,0.03767385,112920.0,112910.0,0.08863284]
[1754162896365,0.00247818,112920.0,112910.0,0.08863284]
[1754162896867,0.00547818,112920.0,112910.0,0.08863284]
[1754162897121,0.00047818,112920.0,112910.0,0.08863284]
[1754162897636,0.00547818,112920.0,112910.0,0.09084699]
[1754162897891,0.00247818,112920.0,112910.0,0.08863284]
[1754162898141,0.00147818,112920.0,112910.0,0.08863284]
[1754162898580,0.0153403,112920.0,112910.0,0.08863284]
[1754162898809,0.05206962,112920.0,112910.0,0.08863284]
[1754162899312,0.0153403,112920.0,112910.0,0.08863284]
[1754162900593,0.78537499,112920.0,112900.0,0.15428]
[1754162900843,0.43003469,112910.0,112900.0,0.08863284]
[1754162901088,0.34,112900.0,112880.0,0.15508]
[1754162901334,0.34,112900.0,112890.0,0.08863284]
[1754162901839,0.35386452,112900.0,112890.0,0.08863284]
[1754162902761,0.78389921,112900.0,112890.0,0.08863284]
[1754162902998,0.35386452,112900.0,112890.0,0.08863284]
[1754162903510,0.78389921,112900.0,112890.0,0.08863284]
[1754162903767,0.35386452,112900.0,112890.0,0.08863284]
[1754162904006,0.341,112900.0,112870.0,0.22643556]
[1754162904220,0.49568,112900.0,112880.0,0.08863284]
[1754162905801,0.49468,112900.0,112880.0,0.08863284]
[1754162906225,0.49568,112900.0,112880.0,0.08863284]
[1754162906439,0.92571469,112900.0,112880.0,0.08863284]
[1754162906648,0.93401937,112900.0,112870.0,0.07171556]
[1754162906859,0.94788608,112900.0,112870.0,0.1603484]
[1754162907318,0.94888608,112900.0,112870.0,0.1603484]
[1754162907548,0.94788608,112900.0,112870.0,0.1603484]
[1754162907976,0.34,112880.0,112870.0,0.1603484]
[1754162908190,0.34830468,112880.0,112870.0,0.1603484]
[1754162908422,0.34830474,112880.0,112870.0,0.1603484]
[1754162908639,0.38881225,112880.0,112870.0,0.1603484]
[1754162909290,0.38881225,112880.0,112870.0,0.16049188]
[1754162909496,0.38050751,112880.0,112870.0,0.16049188]
[1754162909706,0.04881276,112880.0,112870.0,0.16249188]
[1754162910711,0.04881276,112880.0,112870.0,0.16349188]
[1754162911429,0.04050751,112880.0,112870.0,0.16349188]
[1754162911629,0.04050751,112880.0,112870.0,0.16249188]
[1754162912293,0.03933389,112880.0,112870.0,0.16249188]
[1754162913069,0.03933389,112880.0,112870.0,0.21431188]
[1754162913268,0.03933389,112880.0,112870.0,0.14309632]
[1754162913796,0.03933389,112880.0,112870.0,0.14107632]
[1754162914107,0.02664,112880.0,112870.0,0.14107632]
[1754162914699,0.02664,112880.0,112870.0,0.08927632]
[1754162916970,0.46719623,112880.0,112870.0,0.08927632]
[1754162917125,0.48106407,112880.0,112870.0,0.08927632]
[1754162917526,0.63414407,112880.0,112870.0,0.13784632]
[1754162917713,0.63414407,112880.0,112870.0,0.14111632]
[1754162918146,0.19358784,112880.0,112870.0,0.14111632]
[1754162918344,0.19358784,112880.0,112870.0,0.13788632]
[1754162918546,0.19358784,112880.0,112870.0,0.14313632]
[1754162919023,0.04050784,112880.0,112870.0,0.14313632]
[1754162920841,0.04050784,112880.0,112870.0,0.14111632]
[1754162921244,0.04050784,112880.0,112870.0,0.14313632]
[1754162929455,0.48106407,112880.0,112870.0,0.00068348]
[1754162930121,0.38050784,112880.0,112870.0,0.00068348]
[1754162930341,0.82106407,112880.0,112870.0,0.00068348]
[1754162930552,0.82464525,112880.0,112870.0,0.00068348]
[1754162931414,1.26520148,112880.0,112870.0,0.00068348]
[1754162931631,1.27350573,112880.0,112870.0,0.00068348]
[1754162931844,1.2735058,112880.0,112870.0,0.00068348]
[1754162932067,0.38408902,112880.0,112870.0,0.00068348]
[1754162932333,1.27550605,112880.0,112870.0,0.00068348]
[1754162932732,1.27450605,112880.0,112870.0,0.00068348]
[1754162932938,1.27650605,112880.0,112870.0,0.00068348]
[1754162933144,1.29037592,112880.0,112870.0,0.00068348]
[1754162933353,1.28937592,112880.0,112870.0,0.00068348]
[1754162933569,1.29137592,112880.0,112870.0,0.00068348]
[1754162934633,1.36934992,112880.0,112870.0,0.00068348]
[1754162935721,1.34434992,112880.0,112870.0,0.00068348]
[1754162936150,1.36934992,112880.0,112870.0,0.00068348]
[1754162936594,1.35548005,112880.0,112870.0,0.00068348]
[1754162937485,5.85342405,112880.0,112870.0,0.00068348]
[1754162937749,5.87002478,112880.0,112870.0,0.00068348]
[1754162937966,5.87002075,112880.0,112870.0,0.00068348]
[1754162938616,5.89502075,112880.0,112870.0,0.00068348]
[1754162938847,0.79800525,112860.0,112850.0,0.06793904]
[1754162939068,0.95682579,112860.0,112850.0,0.06793904]
[1754162939504,0.97069721,112860.0,112850.0,0.06793904]
[1754162940146,0.97069721,112860.0,112850.0,0.06893904]
[1754162940817,0.99734721,112860.0,112850.0,0.06893904]
[1754162941496,0.99734721,112860.0,112850.0,0.06793904]
[1754162941926,1.00134721,112860.0,112850.0,0.11981904]
[1754162942366,0.85082721,112860.0,112850.0,0.11981904]
[1754162942599,0.97531765,112860.0,112850.0,0.12193904]
[1754162943281,0.97331765,112860.0,112850.0,0.12193904]
[1754162943724,0.97431765,112860.0,112850.0,0.12193904]
[1754162944404,0.99805928,112860.0,112850.0,0.05188]
[1754162944620,0.34,112850.0,112840.0,0.05188]
[1754162944843,0.93083623,112850.0,112840.0,0.054]
[1754162945238,0.93083623,112850.0,112830.0,0.00324351]
[1754162945517,0.78055623,112840.0,112830.0,0.05206351]
[1754162945736,0.78055623,112840.0,112830.0,0.05418351]
[1754162945976,0.80720823,112840.0,112830.0,0.05418351]
[1754162946196,0.82108099,112840.0,112830.0,0.05418351]
[1754162947515,0.82108099,112840.0,112830.0,0.05518351]
[1754162948364,0.53020476,112840.0,112830.0,0.14481635]
[1754162948584,0.56656295,112840.0,112830.0,0.14481635]
[1754162948801,0.56656295,112840.0,112830.0,0.14381635]
[1754162949020,0.56756295,112840.0,112830.0,0.14281635]
[1754162949228,0.56856295,112840.0,112830.0,0.14281635]
[1754162949454,0.56756295,112840.0,112830.0,0.14281635]
[1754162949667,0.56656295,112840.0,112830.0,0.14381635]
[1754162950109,0.07688295,112840.0,112830.0,0.14381635]
[1754162950314,0.07688295,112840.0,112830.0,0.5865883]
[1754162950536,0.07688295,112840.0,112830.0,0.58437258]
[1754162951185,0.07082295,112840.0,112830.0,0.58437258]
[1754162951366,0.05023095,112840.0,112830.0,0.58437258]
[1754162952502,0.05023095,112840.0,112830.0,0.14381635]
[1754162952707,0.05023095,112840.0,112830.0,0.14603207]
[1754162955932,0.01387276,112840.0,112830.0,0.14603207]
[1754162956144,0.026645,112850.0,112830.0,0.57639201]
[1754162956351,0.026645,112850.0,112840.0,0.28927284]
[1754162956558,0.14876,112870.0,112840.0,0.29139284]
[1754162956769,0.026643,112860.0,112840.0,0.23951284]
[1754162956976,0.026643,112860.0,112850.0,0.05188]
[1754162957184,0.026643,112860.0,112850.0,0.14263284]
[1754162957414,0.026643,112860.0,112850.0,0.14484817]
[1754162957831,0.06255062,112860.0,112850.0,0.14484817]
[1754162958035,0.026643,112860.0,112850.0,0.14263284]
[1754162958470,0.026643,112860.0,112850.0,0.14484817]
[1754162959218,0.04051186,112860.0,112850.0,0.14584817]
[1754162960855,0.04051186,112860.0,112850.0,0.14684817]
[1754162961284,0.03807186,112860.0,112850.0,0.14078817]
[1754162962127,0.07458896,112860.0,112850.0,0.14078817]
[1754162963207,0.07458896,112860.0,112850.0,0.14082817]
[1754162963426,0.07458896,112860.0,112850.0,0.14388817]
[1754162964280,0.41656896,112860.0,112850.0,0.14167284]
[1754162964513,0.41656896,112860.0,112850.0,0.13949284]
[1754162964929,0.41656896,112860.0,112850.0,0.14460284]
[1754162965363,0.41458896,112860.0,112850.0,0.14460284]
[1754162965585,0.41458896,112860.0,112850.0,0.14360284]
[1754162966035,0.41458896,112860.0,112850.0,0.14260284]
[1754162966674,0.07458896,112860.0,112850.0,0.14260284]
[1754162967088,0.07458896,112860.0,112850.0,0.14481817]
[1754162967706,0.05038596,112860.0,112850.0,0.14481817]
[1754162968735,0.01386886,112860.0,112850.0,0.14481817]
[1754162968937,0.02664,112870.0,112850.0,0.57517811]
[1754162969157,0.14744,112900.0,112860.0,0.28314284]
[1754162969363,0.026637,112880.0,112870.0,0.04928493]
[1754162969583,0.026637,112880.0,112870.0,0.13692777]
[1754162970211,0.026637,112880.0,112870.0,0.13997777]
[1754162970840,0.027637,112880.0,112870.0,0.13997777]
[1754162971141,0.06379226,112880.0,112870.0,0.13997777]
[1754162971571,0.027637,112880.0,112870.0,0.13997777]
[1754162971799,0.001,112880.0,112870.0,0.13997777]
[1754162972663,0.40225214,112920.0,112870.0,0.13997777]
[1754162972871,0.0001434,112900.0,112880.0,0.23615284]
[1754162973080,0.0267774,112900.0,112890.0,0.00206]
[1754162973293,0.0267774,112900.0,112890.0,0.13997738]
[1754162973976,0.06360334,112900.0,112890.0,0.13997738]
[1754162974912,0.06360334,112900.0,112890.0,0.14197738]
[1754162975196,0.06360334,112900.0,112890.0,0.13997738]
[1754162975427,0.06360334,112900.0,112890.0,0.14497738]
[1754162976313,0.03696934,112900.0,112890.0,0.14697738]
[1754162979870,0.37696934,112900.0,112890.0,0.14697738]
[1754162980300,0.81719436,112900.0,112890.0,0.24263284]
[1754162981117,0.81719436,112900.0,112890.0,0.28665284]
[1754162981249,0.81719436,112900.0,112890.0,0.28165284]
[1754162981443,0.81719436,112900.0,112890.0,0.28365284]
[1754162981695,0.81719436,112900.0,112890.0,0.28165284]
[1754162981896,0.84382836,112900.0,112890.0,0.13565284]
[1754162982103,0.84382836,112900.0,112890.0,0.28245284]
[1754162982517,0.84382836,112900.0,112890.0,0.28145284]
[1754162983518,0.40360334,112900.0,112890.0,0.28145284]
[1754162983785,0.84382836,112900.0,112890.0,0.28145284]
[1754162984331,0.84382836,112900.0,112890.0,0.28450284]
[1754162984886,0.84382836,112900.0,112890.0,0.28656284]
[1754162985732,0.40360334,112900.0,112890.0,0.28656284]
[1754162986160,0.06360334,112900.0,112890.0,0.28656284]
[1754162986367,0.03696934,112900.0,112890.0,0.28656284]
[1754162988616,0.0001434,112900.0,112890.0,0.28656284]
[1754162992711,0.03578198,112900.0,112890.0,0.28656284]
[1754162992911,0.0001434,112900.0,112890.0,0.28656284]
[1754163000053,0.0001434,112900.0,112890.0,0.72678786]
[1754163000279,0.0001434,112900.0,112890.0,0.72682786]
[1754163001095,0.0001434,112900.0,112890.0,0.74427688]
[1754163001504,0.0001434,112900.0,112890.0,0.74727688]
[1754163001715,0.0001434,112900.0,112890.0,0.74527688]
[1754163002146,0.0001434,112900.0,112890.0,0.77227688]
[1754163002318,0.0001434,112900.0,112890.0,0.79227688]
[1754163002534,0.01912306,112940.0,112900.0,0.01744902]
[1754163002750,0.01404051,112940.0,112930.0,0.54833688]
[1754163002969,0.01404051,112940.0,112930.0,0.30158186]
[1754163003374,0.01404051,112940.0,112930.0,0.74180688]
[1754163003606,0.01404051,112940.0,112930.0,0.7678094]
[1754163003779,0.00574125,112940.0,112930.0,0.7678094]
[1754163004203,0.00574125,112940.0,112930.0,0.9807694]
[1754163005287,0.00574125,112940.0,112930.0,0.9847694]
[1754163005634,0.00574125,112940.0,112930.0,0.9837694]
[1754163005845,0.00574125,112940.0,112930.0,0.9807694]
[1754163006071,0.00574125,112940.0,112930.0,0.9887694]
[1754163006512,0.00574125,112940.0,112930.0,0.9885694]
[1754163006928,0.00574125,112940.0,112930.0,0.9935694]
[1754163007138,0.00574125,112940.0,112930.0,1.1435694]
[1754163007551,0.00574125,112940.0,112930.0,1.1385694]
[1754163007746,0.00574125,112940.0,112930.0,1.1675694]
[1754163008202,0.00574125,112940.0,112930.0,1.1925694]
[1754163008403,0.00437919,112940.0,112930.0,1.59178496]
[1754163008778,0.00437919,112940.0,112930.0,1.60378496]
[1754163009004,0.00437919,112940.0,112930.0,1.1605694]
[1754163009406,0.00437919,112940.0,112930.0,0.54534438]
[1754163009868,0.00437919,112940.0,112930.0,0.54834438]
[1754163010241,0.00437919,112940.0,112930.0,0.96312038]
[1754163010426,0.00437919,112940.0,112930.0,0.9955694]
[1754163010855,0.00437919,112940.0,112930.0,0.97876101]
[1754163011078,0.00437919,112940.0,112930.0,0.98276101]
[1754163011716,0.00437919,112940.0,112930.0,0.97376101]
[1754163012132,0.00437919,112940.0,112930.0,0.98076101]
[1754163012330,0.00437919,112940.0,112930.0,0.55138438]
[1754163012544,0.00437919,112940.0,112930.0,0.98080101]
[1754163013167,0.00437919,112940.0,112930.0,0.98072101]
[1754163013990,0.00437919,112940.0,112930.0,0.40602438]
[1754163014225,0.00437919,112940.0,112930.0,0.98052101]
[1754163015179,0.00437919,112940.0,112930.0,0.55110438]
[1754163015389,0.00437919,112940.0,112930.0,0.83544101]
[1754163015621,0.00437919,112940.0,112930.0,0.98048101]
[1754163017346,0.00437919,112940.0,112930.0,0.55106438]
[1754163017550,0.00437919,112940.0,112930.0,0.98048101]
[1754163018659,0.00437919,112940.0,112930.0,0.55106438]
[1754163018887,0.00437919,112940.0,112930.0,0.98048101]
[1754163019112,0.00437919,112940.0,112930.0,0.55106438]
[1754163020257,0.00437919,112940.0,112930.0,0.98048101]
[1754163020685,0.00437919,112940.0,112930.0,0.55106438]
[1754163021158,0.00437919,112940.0,112930.0,0.98048101]
[1754163021797,0.00437919,112940.0,112930.0,0.55106438]
[1754163022883,0.00437919,112940.0,112930.0,0.98048101]
[1754163023313,0.00437919,112940.0,112930.0,0.55106438]
[1754163024920,0.00437919,112940.0,112930.0,0.40602438]
[1754163025145,0.00460919,112940.0,112930.0,0.53317536]
[1754163025795,0.00437919,112940.0,112930.0,0.53317536]
[1754163027218,0.00361919,112940.0,112930.0,0.53317536]
[1754163027894,0.00384919,112940.0,112930.0,0.33863536]
[1754163028073,0.43340582,112940.0,112930.0,0.33863536]
[1754163028327,0.77340582,112940.0,112930.0,0.45707284]
[1754163028511,0.34398919,112940.0,112930.0,0.24411284]
[1754163029123,0.77340582,112940.0,112930.0,0.24011284]
[1754163029416,0.77340582,112940.0,112930.0,0.23311284]
[1754163029789,0.77340582,112940.0,112930.0,0.23711284]
[1754163030021,0.77340582,112940.0,112930.0,0.09267284]
[1754163030215,0.77340582,112940.0,112930.0,0.23703284]
[1754163030796,0.78409073,112940.0,112930.0,0.23703284]
[1754163033091,0.34398919,112940.0,112930.0,0.23703284]
[1754163033264,0.78409073,112940.0,112930.0,0.23703284]
[1754163034165,0.78409073,112940.0,112930.0,0.23683284]
[1754163034607,0.78409073,112940.0,112930.0,0.09267284]
[1754163034822,0.34398919,112940.0,112930.0,0.148]
[1754163035039,0.78409073,112940.0,112930.0,0.148]
[1754163035403,0.79238143,112940.0,112930.0,0.147]
[1754163035611,0.79238143,112940.0,112930.0,0.144]
[1754163035862,0.5910853,112940.0,112930.0,0.144]
[1754163036044,0.44839224,112940.0,112930.0,0.145]
[1754163037502,0.48887971,112940.0,112930.0,0.145]
[1754163037922,0.82887971,112940.0,112930.0,0.00104]
[1754163038339,0.82058901,112940.0,112930.0,0.00104]
[1754163038554,0.82887096,112940.0,112930.0,0.00104]
[1754163039158,0.82058901,112940.0,112930.0,0.00104]
[1754163041588,0.85713986,112940.0,112930.0,0.00104]
[1754163043867,0.84327939,112940.0,112930.0,0.00104]
[1754163045429,1.30082995,112940.0,112930.0,0.00104]
[1754163045643,1.3091056,112940.0,112930.0,0.00104]
[1754163046290,1.3091056,112940.0,112930.0,4e-05]
[1754163046508,1.3847262,112940.0,112930.0,4e-05]
[1754163046725,1.3877262,112940.0,112930.0,4e-05]
[1754163047138,1.40158944,112940.0,112930.0,4e-05]
[1754163047345,1.40458944,112940.0,112930.0,4e-05]
[1754163048441,5.90253344,112940.0,112930.0,4e-05]
[1754163050581,5.02233036,112940.0,112930.0,4e-05]
[1754163050789,5.90253344,112940.0,112930.0,4e-05]
[1754163051041,0.44010154,112920.0,112900.0,0.07026556]
[1754163051311,0.14352,112930.0,112920.0,0.11429556]
[1754163051543,0.3482672,112930.0,112910.0,0.08863284]
[1754163051781,0.01386294,112920.0,112910.0,0.13671284]
[1754163052024,0.01386294,112920.0,112910.0,0.09363284]
[1754163052263,0.01486294,112920.0,112910.0,0.09363284]
[1754163052509,0.89506602,112920.0,112910.0,0.09363284]
[1754163052757,0.89506602,112920.0,112910.0,0.13671284]
[1754163053241,0.45496448,112920.0,112910.0,0.13771284]
[1754163053495,0.06317785,112940.0,112910.0,0.28344699]
[1754163053722,0.44010154,112930.0,112920.0,0.11730556]
[1754163053935,0.50327939,112940.0,112920.0,0.2079284]
[1754163054147,0.50327939,112940.0,112930.0,0.08863284]
[1754163054358,0.51154978,112940.0,112930.0,0.13671284]
[1754163054626,0.51154978,112940.0,112930.0,0.28023284]
[1754163054840,0.06517785,112940.0,112930.0,0.28023284]
[1754163055065,0.002,112940.0,112930.0,0.28023284]
[1754163055276,0.01385984,112950.0,112930.0,0.28023284]
[1754163055489,0.03503738,112950.0,112940.0,0.12053556]
[1754163055714,0.03503738,112950.0,112940.0,0.21344196]
[1754163055942,0.02676439,112950.0,112940.0,0.2112284]
[1754163056159,0.03503664,112950.0,112940.0,0.2092284]
[1754163056616,0.00014339,112950.0,112940.0,0.2112284]
[1754163057047,0.00014339,112950.0,112940.0,0.14001284]
[1754163057270,0.00014339,112950.0,112940.0,0.1422264]
[1754163058155,0.00014339,112950.0,112940.0,0.1442264]
[1754163058841,0.00014339,112950.0,112940.0,0.1422264]
[1754163059289,0.00014339,112950.0,112940.0,0.1462264]
[1754163062189,0.00014339,112950.0,112940.0,0.23489098]
[1754163062451,0.00014339,112950.0,112940.0,0.66233206]
[1754163063110,0.00014339,112950.0,112940.0,0.65633206]
[1754163063338,0.00014339,112950.0,112940.0,0.66933206]
[1754163063561,0.00014339,112950.0,112940.0,0.23967742]
[1754163063788,0.00014339,112950.0,112940.0,0.5981165]
[1754163064231,0.00014339,112950.0,112940.0,0.16846186]
[1754163064451,0.00014339,112950.0,112940.0,1.21154562]
[1754163064661,0.00014339,112950.0,112940.0,1.20933206]
[1754163065125,0.00014339,112950.0,112940.0,1.21558006]
[1754163066234,0.00014339,112950.0,112940.0,0.85818986]
[1754163066493,0.00014339,112950.0,112940.0,1.2878445]
[1754163068122,0.26291494,113010.0,112960.0,0.025]
[1754163068355,0.00014334,112990.0,112980.0,0.08863284]
[1754163068598,0.00014334,112990.0,112980.0,0.13795284]
[1754163068791,0.00014334,112990.0,112980.0,0.14222562]
[1754163070057,0.00014334,112990.0,112980.0,0.14522562]
[1754163071387,0.00014334,112990.0,112980.0,0.14722562]
[1754163072028,0.00014334,112990.0,112980.0,0.14422562]
[1754163072443,0.00014334,112990.0,112980.0,0.14922562]
[1754163074005,0.00014334,112990.0,112980.0,0.59632928]
[1754163074219,0.00014334,112990.0,112980.0,0.5941165]
[1754163077771,0.00014334,112990.0,112980.0,0.8069165]
[1754163078180,0.00014334,112990.0,112980.0,0.8335175]
[1754163078418,0.00014334,112990.0,112980.0,0.8585175]
[1754163079187,0.00014334,112990.0,112980.0,0.8535175]
[1754163079498,0.00014334,112990.0,112980.0,0.8585175]
[1754163079699,0.00014334,112990.0,112980.0,0.8615175]
[1754163081844,0.00014334,112990.0,112980.0,0.8615575]
[1754163082052,0.00014334,112990.0,112980.0,1.2015575]
[1754163082256,0.00014334,112990.0,112980.0,1.2265575]
[1754163086962,0.00014334,112990.0,112980.0,1.23614282]
[1754163087373,0.00014334,112990.0,112980.0,1.50584282]
[1754163090593,0.00014334,112990.0,112980.0,1.51434282]
[1754163093063,0.00014334,112990.0,112980.0,1.24464282]
[1754163094343,0.00014334,112990.0,112980.0,1.38792282]
[1754163094557,0.00014334,112990.0,112980.0,0.54589384]
[1754163094773,0.00014334,112990.0,112980.0,1.1018128]
[1754163094995,0.00014334,112990.0,112980.0,1.1268128]
[1754163095200,0.00014334,112990.0,112980.0,1.1289528]
[1754163095418,0.00014334,112990.0,112980.0,1.14640182]
[1754163096078,0.00014334,112990.0,112980.0,0.99462182]
[1754163096280,0.00014334,112990.0,112980.0,1.13790182]
[1754163098819,0.00014334,112990.0,112980.0,1.16450282]
[1754163099496,0.00014334,112990.0,112980.0,0.72526286]
[1754163099727,0.00014334,112990.0,112980.0,1.16450282]
[1754163100366,0.00014334,112990.0,112980.0,0.33807384]
[1754163100578,0.00014334,112990.0,112980.0,0.48131384]
[1754163100826,0.00014334,112990.0,112980.0,0.9677238]
[1754163101015,0.00014334,112990.0,112980.0,0.9462128]
[1754163101259,0.00014334,112990.0,112980.0,0.96366182]
[1754163101479,0.00014334,112990.0,112980.0,1.11366182]
[1754163101699,0.00014334,112990.0,112980.0,1.50366182]
[1754163104297,0.00014334,112990.0,112980.0,0.32892186]
[1754163104512,0.00014334,112990.0,112980.0,0.45471284]
[1754163104746,0.00014334,112990.0,112980.0,0.31147284]
[1754163104960,0.44767913,112990.0,112980.0,0.45471284]
[1754163105399,0.00843917,112990.0,112980.0,0.45471284]
[1754163105874,0.00843777,112990.0,112980.0,0.45471284]
[1754163106095,0.00014334,112990.0,112980.0,0.9411228]
[1754163106314,0.34,113000.0,112990.0,0.00225666]
[1754163106532,0.34829392,113000.0,112990.0,0.68408204]
[1754163106764,0.34829392,113000.0,112990.0,0.2927495]
[1754163106980,0.34829392,113000.0,112990.0,0.2897995]
[1754163107427,0.34829392,113000.0,112990.0,0.0993895]
[1754163107645,0.78753388,113000.0,112990.0,0.2436295]
[1754163108091,0.34829392,113000.0,112990.0,0.2436295]
[1754163108314,0.78753388,113000.0,112990.0,0.2436295]
[1754163108541,0.78753388,113000.0,112990.0,0.2486295]
[1754163109177,0.78753388,113000.0,112990.0,0.1053895]
[1754163109389,0.78753388,113000.0,112990.0,0.2486695]
[1754163110231,0.78753388,113000.0,112990.0,0.2476695]
[1754163110451,0.00829392,113000.0,112990.0,0.1044295]
[1754163110658,0.44753388,113000.0,112990.0,0.2476695]
[1754163110866,0.00829392,113000.0,112990.0,0.2476695]
[1754163111337,0.46969439,113010.0,112990.0,0.2426295]
[1754163111547,0.8179829,113010.0,113000.0,0.23183284]
[1754163112403,0.388745,113010.0,113000.0,0.23183284]
[1754163112621,0.8179829,113010.0,113000.0,0.23183284]
[1754163112825,0.8179829,113010.0,113000.0,0.23483284]
[1754163113254,0.80969439,113010.0,113000.0,0.09163284]
[1754163113693,0.38145649,113010.0,113000.0,0.23483284]
[1754163114146,0.38045649,113010.0,113000.0,0.23483284]
[1754163114370,0.35384949,113010.0,113000.0,0.23483284]
[1754163114592,0.35484949,113010.0,113000.0,0.23487284]
[1754163115661,0.35484949,113010.0,113000.0,0.75619976]
[1754163115662,0.001,113010.0,113000.0,0.75619976]
[1754163115840,0.001,113010.0,113000.0,0.32696186]
[1754163116089,0.001,113010.0,113000.0,0.39517742]
[1754163116297,0.0002,113020.0,113000.0,0.39517742]
[1754163116558,0.0002,113020.0,113010.0,0.09084503]
[1754163116797,0.0002,113020.0,113010.0,0.14048503]
[1754163117040,0.0002,113020.0,113010.0,0.3104145]
[1754163117219,0.0002,113020.0,113010.0,0.30820231]
[1754163117533,0.0002,113020.0,113010.0,0.32565133]
[1754163117948,0.0002,113020.0,113010.0,0.35150734]
[1754163119211,0.0002,113020.0,113010.0,0.35850734]
[1754163119430,0.0002,113020.0,113010.0,0.35450734]
[1754163119642,0.0002,113020.0,113010.0,0.36250734]
[1754163121609,0.0002,113020.0,113010.0,0.34505832]
[1754163122554,0.0002,113020.0,113010.0,0.33401832]
[1754163122784,0.0002,113020.0,113010.0,0.34301832]
[1754163128053,0.0002,113020.0,113010.0,0.35151832]
[1754163128701,0.0002,113020.0,113010.0,0.56423832]
[1754163130043,0.0002,113020.0,113010.0,0.99347622]
[1754163130514,0.0002,113020.0,113010.0,0.56423832]
[1754163131163,0.0002,113020.0,113010.0,0.42111832]
[1754163131375,0.0002,113020.0,113010.0,0.56415832]
[1754163132466,0.0002,113020.0,113010.0,0.42111832]
[1754163132699,0.0002,113020.0,113010.0,0.56415832]
[1754163132920,0.0002,113020.0,113010.0,1.00560772]
[1754163138184,0.0002,113020.0,113010.0,1.00556772]
[1754163138829,0.0002,113020.0,113010.0,0.56637498]
[1754163139041,0.0002,113020.0,113010.0,1.00556772]
[1754163139257,0.0002,113020.0,113010.0,0.86256772]
[1754163139441,0.0002,113020.0,113010.0,1.00556772]
[1754163143612,0.0002,113020.0,113010.0,1.00552772]
[1754163145422,0.0002,113020.0,113010.0,0.99702772]
[1754163146174,0.0002,113020.0,113010.0,0.55783498]
[1754163146379,0.0002,113020.0,113010.0,0.99702772]
[1754163147656,0.0002,113020.0,113010.0,0.55783498]
[1754163147862,0.0002,113020.0,113010.0,0.99702772]
[1754163149734,0.0002,113020.0,113010.0,0.55775498]
[1754163150296,0.0002,113020.0,113010.0,0.99694772]